lending/lending_fUSD_20260306
["ID","MTS","AMOUNT","RATE_DAILY","PERIOD"]
[407790986,1772803861261,-1000.0,0.00035616,10]
[407790987,1772803861271,-1000.0,0.00035616,10]
[407790988,1772803861280,-1000.0,0.00035616,10]
[407790989,1772803861290,-1000.0,0.00035616,10]
[407790990,1772803861300,-1000.0,0.00035616,10]
[407790991,1772803861310,-1000.0,0.00035616,10]
[407790992,1772803861319,-1000.0,0.00035616,10]
[407790993,1772803861329,-1000.0,0.00035616,10]
[407790994,1772803861339,-1000.0,0.00035616,10]
[407790995,1772803861348,-1000.0,0.00035616,10]
[407790996,1772803861357,-1000.0,0.00035616,10]
[407790997,1772803861366,-1000.0,0.00035616,10]
[407790998,1772803861375,-1000.0,0.00035616,10]
[407790999,1772803861384,-1000.0,0.00035616,10]
[407791000,1772803861393,-1000.0,0.00035616,10]
[407791001,1772803861402,-1000.0,0.00035616,10]
[407791002,1772803861411,-1000.0,0.00035616,10]
[407791003,1772803861420,-1000.0,0.00035616,10]
[407791004,1772803861429,-1000.0,0.00035616,10]
[407791005,1772803861438,-186.0,0.00035616,10]
[407791006,1772803861447,-195.12270387,0.00035616,2]
[407791007,1772803861456,-151.0,0.00035616,7]
[407791008,1772803861465,-151.0,0.00035616,7]
[407791009,1772803861474,-300.544298,0.00035616,7]
[407791010,1772803861484,-1000.0,0.00035733,14]
[407791011,1772803861495,-151.0,0.00035767,7]
[407791012,1772803861515,-1831.985538,0.00035767,7]
[407791013,1772803861526,-1831.985538,0.00035767,7]
[407791014,1772803861535,-1831.985538,0.00035767,7]
[407791015,1772803861545,-1831.985538,0.00035767,7]
[407791016,1772803861555,-151.0,0.00035767,7]
[407791017,1772803861565,-151.0,0.00035767,7]
[407791018,1772803861578,-208362.0,0.00035768,30]
[407791019,1772803861587,-2000.0,0.000358,7]
[407791020,1772803861597,-244.476143,0.00035839,43]
[407791021,1772803861606,-724.53543,0.00035888,30]
[407791022,1772803861616,-3567.05,0.000359,14]
[407791023,1772803861626,-5178.5427259,0.00036,60]
[407791024,1772803861635,-1276.87510755,0.00036,120]
[407791025,1772803861646,-195996.87277684,0.00036,2]
[407791026,1772803861657,-236001.58979596,0.00036,2]
[407791027,1772803861667,-200.0,0.00036,120]
[407791028,1772803861677,-164145.69311301,0.00036,10]
[407791029,1772803861687,-151.0,0.00036,7]
[407791030,1772803861696,-151.0,0.00036,7]
[407791031,1772803861705,-151.0,0.00036,7]
[407791032,1772803861715,-157.435221,0.00036,7]
[407791033,1772803861724,-151.0,0.00036,7]
[407791034,1772803861733,-151.0,0.00036,7]
[407791035,1772803861745,-151.0,0.00036,7]
[407791036,1772803861754,-1000.0,0.00036007,14]
[407791037,1772803861763,-2530.1,0.00036044,10]
[407791038,1772803861773,-724.53543,0.00036088,30]
[407791039,1772803861782,-3585.0,0.00036132,10]
[407791040,1772803861791,-2510.99,0.00036133,10]
[407791041,1772803861801,-151.5,0.0003619,2]
[407791042,1772803861810,-3567.05,0.000362,14]
[407791043,1772803861819,-25000.0,0.00036209,10]
[407791044,1772803861829,-360.0,0.00036247,30]
[407791045,1772803861838,-363.0,0.00036247,30]
[407791046,1772803861848,-1000.0,0.00036281,14]
[407791047,1772803861858,-724.53543,0.00036288,30]
[407791048,1772803861868,-150.1,0.00036316,2]
[407791049,1772803861877,-672.87,0.00036325,10]
[407791050,1772803861887,-152.0,0.00036419,5]
[407791051,1772803861896,-200.0,0.00036428,41]
[407791052,1772803861905,-5000.0,0.00036429,10]
[407791053,1772803861915,-150.0,0.0003643,2]
[407791054,1772803861924,-724.53543,0.00036488,30]
[407791055,1772803861933,-4341.52,0.000365,14]
[407791056,1772803861943,-2803.0,0.00036507,11]
[407791057,1772803861952,-1000.0,0.00036555,14]
[407791058,1772803861961,-5000.0,0.00036562,10]
[407791059,1772803861970,-25000.0,0.00036565,10]
[407791060,1772803861980,-5000.0,0.00036583,10]
[407791061,1772803861991,-5000.0,0.00036682,10]
[407791062,1772803862001,-724.53543,0.00036688,30]
[407791063,1772803862011,-2510.99,0.00036715,10]
[407791064,1772803862020,-16559.02,0.00036724,10]
[407791065,1772803862030,-1568.79,0.00036726,10]
[407791066,1772803862040,-2530.1,0.0003674,10]
[407791067,1772803862049,-1003.11,0.00036791,30]
[407791068,1772803862063,-830.78,0.00036795,10]
[407791069,1772803862074,-500.0,0.00036796,120]
[407791070,1772803862084,-25000.0,0.00036827,10]
[407791071,1772803862096,-1000.0,0.00036828,14]
[407791072,1772803862105,-197.06,0.00036836,10]
[407791073,1772803862116,-208362.0,0.00036841,30]
[407791074,1772803862126,-151.5,0.00036876,2]
[407791075,1772803862135,-724.53543,0.00036888,30]
[407791076,1772803862145,-2415.1181,0.00036888,7]
[407791077,1772803862155,-150.0,0.00036893,30]
[407791078,1772803862164,-14213.40744122,0.0003691,2]
[407791079,1772803862174,-1000.0,0.00036999,2]
[407791080,1772803862184,-400.0,0.0003707,2]
[407791081,1772803862195,-235.75327194,0.00037087,30]
[407791082,1772803862205,-724.53543,0.00037088,30]
[407791083,1772803862214,-1000.0,0.00037102,14]
[407791084,1772803862224,-1000.0,0.0003715,2]
[407791085,1772803862234,-1000.0,0.0003715,2]
[407791086,1772803862244,-1000.0,0.0003715,2]
[407791087,1772803862255,-1000.0,0.0003715,2]
[407791088,1772803862264,-1000.0,0.0003715,2]
[407791089,1772803862274,-496.40197983,0.000372,120]
[407791090,1772803862284,-496.40197981,0.000372,120]
[407791091,1772803862294,-496.40197981,0.000372,120]
[407791092,1772803862304,-496.40197981,0.000372,120]
[407791093,1772803862313,-496.40197981,0.000372,120]
[407791094,1772803862324,-1000.0,0.00037242,2]
[407791095,1772803862334,-1000.0,0.00037242,2]
[407791096,1772803862343,-1000.0,0.00037242,2]
[407791097,1772803862353,-1000.0,0.00037242,2]
[407791098,1772803862364,-1000.0,0.00037242,2]
[407791099,1772803862373,-151.5,0.0003726,2]
[407791100,1772803862382,-724.53543,0.00037288,30]
[407791101,1772803862391,-2000.0,0.000373,7]
[407791102,1772803862400,-825.0,0.00037336,90]
[407791103,1772803862409,-1000.0,0.00037376,14]
[407791104,1772803862418,-724.53543,0.00037488,30]
[407791105,1772803862428,-5000.0,0.000375,50]
[407791106,1772803862438,-243.97460639,0.00037534,7]
[407791107,1772803862447,-1000.0,0.0003765,14]
[407791108,1772803862456,-724.53543,0.00037688,30]
[407791109,1772803862465,-360.0,0.00037696,30]
[407791110,1772803862475,-998.96282942,0.00037753,120]
[407791111,1772803862484,-152.0,0.00037823,6]
[407791112,1772803862496,-724.53543,0.00037888,30]
[407791113,1772803862507,-615.05257501,0.000379,120]
[407791114,1772803862516,-208362.0,0.00037914,30]
[407791115,1772803862527,-1000.0,0.00037924,14]
[407791116,1772803862536,-360.0,0.00037973,30]
[407791117,1772803862546,-855.29437734,0.00037999,120]
[407791118,1772803862557,-200.0,0.00038,120]
[407791119,1772803862568,-4798.0,0.00038,120]
[407791120,1772803862578,-194547.98747943,0.00038,14]
[407791121,1772803862594,-500.0,0.00038,2]
[407791122,1772803862603,-526.0,0.00038,5]
[407791123,1772803862613,-301.26432731,0.00038,7]
[407791124,1772803862624,-617.0,0.00038,2]
[407791125,1772803862635,-262.68,0.00038034,30]
[407791126,1772803862645,-724.53543,0.00038088,30]
[407791127,1772803862657,-227.34163157,0.00038099,33]
[407791128,1772803862669,-9891.12348327,0.000381,33]
[407791129,1772803862679,-1279.0,0.00038163,2]
[407791130,1772803862690,-1212.0,0.00038163,2]
[407791131,1772803862701,-922.0,0.00038163,2]
[407791132,1772803862711,-3502.0,0.00038163,2]
[407791133,1772803862720,-619.0,0.00038163,2]
[407791134,1772803862731,-151.5,0.0003818,2]
[407791135,1772803862743,-1560.0,0.00038198,14]
[407791136,1772803862754,-150.0,0.00038252,2]
[407791137,1772803862764,-3627.79981394,0.00038284,66]
[407791138,1772803862775,-724.53543,0.00038288,30]
[407791139,1772803862785,-287.95727171,0.000383,30]
[407791140,1772803862795,-151.5,0.00038312,2]
[407791141,1772803862806,-459.06149444,0.00038356,7]
[407791142,1772803862815,-151.0,0.00038356,120]
[407791143,1772803862825,-151.0,0.00038356,120]
[407791144,1772803862835,-1045.82248496,0.00038356,5]
[407791145,1772803862845,-151.5,0.00038378,2]
[407791146,1772803862854,-280.0,0.0003838,5]
[407791147,1772803862864,-1033.93,0.000384,120]
[407791148,1772803862874,-1000.0,0.00038472,14]
[407791149,1772803862884,-724.53543,0.00038488,30]
[407791150,1772803862894,-151.5,0.00038615,2]
[407791151,1772803862904,-151.5,0.00038647,2]
[407791152,1772803862914,-4144.77982772,0.00038679,120]
[407791153,1772803862925,-219.23011724,0.00038687,30]
[407791154,1772803862934,-724.53543,0.00038688,30]
[407791155,1772803862945,-1024.51265168,0.000387,2]
[407791156,1772803862955,-1999.0,0.00038746,14]
[407791157,1772803862966,-400.0,0.0003877,2]
[407791158,1772803862977,-1746.23,0.000388,120]
[407791159,1772803862987,-2000.0,0.000388,2]
[407791160,1772803863000,-252.21,0.00038828,90]
[407791161,1772803863010,-2013.65552603,0.00038829,47]
[407791162,1772803863020,-151.0,0.00038831,14]
[407791163,1772803863029,-10001.41130478,0.00038834,2]
[407791164,1772803863039,-936.17937683,0.000389,120]
[407791165,1772803863049,-1535.48572652,0.00038911,7]
[407791166,1772803863059,-155128.05723141,0.00038911,7]
[407791167,1772803863068,-208362.0,0.00038987,30]
[407791168,1772803863078,-394.543265,0.00038987,120]
[407791169,1772803863088,-394.543265,0.00038987,120]
[407791170,1772803863098,-190.386435,0.00038987,120]
[407791171,1772803863108,-394.543265,0.00038987,120]
[407791172,1772803863117,-394.543265,0.00038987,120]
[407791173,1772803863127,-332.483725,0.00038987,120]
[407791174,1772803863136,-332.483725,0.00038987,120]
[407791175,1772803863146,-332.483725,0.00038987,120]
[407791176,1772803863156,-332.483725,0.00038987,120]
[407791177,1772803863166,-151.0,0.00038987,120]
[407791178,1772803863176,-225.902031,0.00038987,120]
[407791179,1772803863185,-225.902031,0.00038987,120]
[407791180,1772803863195,-225.902031,0.00038987,120]
[407791181,1772803863204,-225.902031,0.00038987,120]
[407791182,1772803863214,-650.032813,0.00038987,7]
[407791183,1772803863224,-650.032813,0.00038987,7]
[407791184,1772803863235,-650.032813,0.00038987,7]
[407791185,1772803863246,-650.032813,0.00038987,7]
[407791186,1772803863256,-243.067122,0.00038987,120]
[407791187,1772803863266,-243.067122,0.00038987,120]
[407791188,1772803863276,-151.0,0.00038987,30]
[407791189,1772803863286,-243.067122,0.00038987,120]
[407791190,1772803863296,-243.067122,0.00038987,120]
[407791191,1772803863307,-1068.578217,0.00038987,28]
[407791192,1772803863317,-1068.578217,0.00038987,28]
[407791193,1772803863327,-1068.578217,0.00038987,28]
[407791194,1772803863337,-1068.578217,0.00038987,28]
[407791195,1772803863346,-151.0,0.00038987,120]
[407791196,1772803863356,-161.568511,0.00038987,120]
[407791197,1772803863366,-151.0,0.00038987,120]
[407791198,1772803863376,-507.054478,0.00038987,120]
[407791199,1772803863386,-507.054478,0.00038987,120]
[407791200,1772803863404,-507.054478,0.00038987,120]
[407791201,1772803863414,-507.054478,0.00038987,120]
[407791202,1772803863424,-151.0,0.00038987,120]
[407791203,1772803863441,-151.0,0.00038987,120]
[407791204,1772803863456,-151.5,0.00038997,2]
[407791205,1772803863580,-2000.0,0.00039,120]
[407791206,1772803863592,-153.72588832,0.00039,120]
[407791207,1772803863601,-30952.64039135,0.00039,2]
[407791208,1772803863611,-330.65478329,0.00039,90]
[407791209,1772803863622,-873.49542746,0.00039,14]
[407791210,1772803863631,-36635.30644421,0.00039,10]
[407791211,1772803863641,-151.5,0.00039008,2]
[407791212,1772803863652,-151.5,0.0003904,2]
[407791213,1772803863660,-724.53543,0.00039088,30]
[407791214,1772803863670,-782.06943579,0.000391,120]
[407791215,1772803863679,-360.0,0.00039146,90]
[407791216,1772803863690,-152.0,0.00039228,7]
[407791217,1772803863699,-724.53543,0.00039288,30]
[407791218,1772803863709,-724.53543,0.00039488,30]
[407791219,1772803863718,-150.062051,0.00039494,3]
[407791220,1772803863727,-724.53543,0.00039688,30]
[407791221,1772803863738,-360.0,0.00039699,90]
[407791222,1772803863752,-1003.11,0.00039726,30]
[407791223,1772803863762,-1000.0,0.00039738,2]
[407791224,1772803863772,-825.0,0.00039812,90]
[407791225,1772803863782,-724.53543,0.00039888,30]
[407791226,1772803863793,-184.76838469,0.0003989,2]
[407791227,1772803863803,-151.5,0.00039937,2]
[407791228,1772803863813,-151.5,0.00039993,2]
[407791229,1772803863822,-845.16272056,0.0004,120]
[407791230,1772803863832,-359.65537879,0.0004,45]
[407791231,1772803863841,-151.0,0.0004,120]
[407791232,1772803863851,-1000.0,0.0004,120]
[407791233,1772803863861,-153.0,0.0004,120]
[407791234,1772803863870,-568.0322112,0.0004,2]
[407791235,1772803863880,-5000.0,0.0004,90]
[407791236,1772803863890,-3000.0,0.0004,120]
[407791237,1772803863899,-163.0,0.0004,8]
[407791238,1772803863909,-468.53197704,0.0004,120]
[407791239,1772803863919,-429.39907119,0.0004,7]
[407791240,1772803863929,-2240.04308568,0.0004,7]
[407791241,1772803863939,-276.62356196,0.0004,120]
[407791242,1772803863949,-1390.10366674,0.0004,120]
[407791243,1772803863958,-996.86514348,0.0004,7]
[407791244,1772803863967,-36137.08701451,0.0004,7]
[407791245,1772803863978,-3153.62420388,0.0004,30]
[407791246,1772803863988,-374.25016167,0.0004,120]
[407791247,1772803864004,-1755.31429421,0.0004,120]
[407791248,1772803864014,-452.47716498,0.0004,30]
[407791249,1772803864025,-344.2995915,0.0004,120]
[407791250,1772803864035,-9876.07948827,0.0004,120]
[407791251,1772803864045,-7590.93175875,0.0004,120]
[407791252,1772803864054,-224.32591118,0.0004,120]
[407791253,1772803864064,-672.32512062,0.0004,30]
[407791254,1772803864074,-34314.25447419,0.0004,10]
[407791255,1772803864084,-1059.82957544,0.0004,14]
[407791256,1772803864094,-458.62711432,0.0004,120]
[407791257,1772803864104,-3000.0,0.0004,7]
[407791258,1772803864114,-10738.78841583,0.0004,2]
[407791259,1772803864123,-508.45802612,0.0004,120]
[407791260,1772803864133,-27049.22766018,0.0004,120]
[407791261,1772803864142,-3329.00525855,0.0004,7]
[407791262,1772803864152,-818.881209,0.0004,120]
[407791263,1772803864161,-5100.12345678,0.0004,5]
[407791264,1772803864171,-160.0,0.0004,120]
[407791265,1772803864181,-160.0,0.0004,10]
[407791266,1772803864190,-2000.0,0.0004,120]
[407791267,1772803864200,-635.56,0.0004,120]
[407791268,1772803864209,-761.86,0.0004,120]
[407791269,1772803864218,-1320.24,0.0004,120]
[407791270,1772803864228,-150.92,0.0004,2]
[407791271,1772803864238,-470.03,0.0004,120]
[407791272,1772803864250,-1452.14,0.0004,120]
[407791273,1772803864259,-850.85,0.0004,120]
[407791274,1772803864269,-150.92,0.0004,2]
[407791275,1772803864278,-150.92,0.0004,2]
[407791276,1772803864288,-150.92,0.0004,2]
[407791277,1772803864298,-150.92,0.0004,2]
[407791278,1772803864307,-150.92,0.0004,2]
[407791279,1772803864317,-150.92,0.0004,2]
[407791280,1772803864327,-150.92,0.0004,2]
[407791281,1772803864336,-150.92,0.0004,2]
[407791282,1772803864346,-150.92,0.0004,2]
[407791283,1772803864356,-150.92,0.0004,2]
[407791284,1772803864366,-150.92,0.0004,2]
[407791285,1772803864375,-150.92,0.0004,2]
[407791286,1772803864385,-150.92,0.0004,2]
[407791287,1772803864394,-150.92,0.0004,2]
[407791288,1772803864404,-150.92,0.0004,2]
[407791289,1772803864414,-150.92,0.0004,2]
[407791290,1772803864423,-150.92,0.0004,2]
[407791291,1772803864432,-150.92,0.0004,2]
[407791292,1772803864442,-150.92,0.0004,2]
[407791293,1772803864452,-150.92,0.0004,2]
[407791294,1772803864461,-150.92,0.0004,2]
[407791295,1772803864471,-150.92,0.0004,2]
[407791296,1772803864480,-150.92,0.0004,2]
[407791297,1772803864493,-150.92,0.0004,2]
[407791298,1772803864503,-150.92,0.0004,2]
[407791299,1772803864512,-150.92,0.0004,2]
[407791300,1772803864522,-150.92,0.0004,2]
[407791301,1772803864531,-150.92,0.0004,2]
[407791302,1772803864540,-150.92,0.0004,2]
[407791303,1772803864550,-150.92,0.0004,2]
[407791304,1772803864559,-150.92,0.0004,2]
[407791305,1772803864569,-150.92,0.0004,2]
[407791306,1772803864581,-150.92,0.0004,2]
[407791307,1772803864590,-150.92,0.0004,2]
[407791308,1772803864599,-150.92,0.0004,2]
[407791309,1772803864609,-150.92,0.0004,2]
[407791310,1772803864619,-150.92,0.0004,2]
[407791311,1772803864630,-150.92,0.0004,2]
[407791312,1772803864639,-150.92,0.0004,2]
[407791313,1772803864651,-150.92,0.0004,2]
[407791314,1772803864661,-150.92,0.0004,2]
[407791315,1772803864670,-150.92,0.0004,2]
[407791316,1772803864679,-150.92,0.0004,2]
[407791317,1772803864689,-150.92,0.0004,2]
[407791318,1772803864699,-150.92,0.0004,2]
[407791319,1772803864708,-150.92,0.0004,2]
[407791320,1772803864717,-200.0,0.00040024,69]
[407791321,1772803864727,-724.53543,0.00040088,30]
[407791322,1772803864736,-150.0,0.00040165,2]
[407791323,1772803864749,-800.0,0.00040218,13]
[407791324,1772803864759,-800.0,0.00040218,13]
[407791325,1772803864769,-800.0,0.00040218,13]
[407791326,1772803864779,-800.0,0.00040218,13]
[407791327,1772803864789,-800.0,0.00040218,13]
[407791328,1772803864800,-800.0,0.00040218,13]
[407791329,1772803864810,-800.0,0.00040218,13]
[407791330,1772803864819,-800.0,0.00040218,13]
[407791331,1772803864830,-800.0,0.00040218,13]
[407791332,1772803864839,-800.0,0.00040218,13]
[407791333,1772803864849,-800.0,0.00040218,13]
[407791334,1772803864858,-800.0,0.00040218,13]
[407791335,1772803864868,-800.0,0.00040218,13]
[407791336,1772803864878,-800.0,0.00040218,13]
[407791337,1772803864887,-800.0,0.00040218,13]
[407791338,1772803864897,-800.0,0.00040218,13]
[407791339,1772803864906,-800.0,0.00040218,13]
[407791340,1772803864915,-800.0,0.00040218,13]
[407791341,1772803864925,-800.0,0.00040218,13]
[407791342,1772803864934,-800.0,0.00040218,13]
[407791343,1772803864943,-800.0,0.00040218,13]
[407791344,1772803864953,-800.0,0.00040218,13]
[407791345,1772803864963,-800.0,0.00040218,13]
[407791346,1772803864972,-800.0,0.00040218,13]
[407791347,1772803864982,-800.0,0.00040218,13]
[407791348,1772803864994,-800.0,0.00040218,13]
[407791349,1772803865004,-800.0,0.00040218,13]
[407791350,1772803865013,-800.0,0.00040218,13]
[407791351,1772803865022,-800.0,0.00040218,13]
[407791352,1772803865032,-800.0,0.00040218,13]
[407791353,1772803865042,-800.0,0.00040218,13]
[407791354,1772803865052,-800.0,0.00040218,13]
[407791355,1772803865062,-800.0,0.00040218,13]
[407791356,1772803865071,-800.0,0.00040218,13]
[407791357,1772803865082,-800.0,0.00040218,13]
[407791358,1772803865092,-800.0,0.00040218,13]
[407791359,1772803865102,-800.0,0.00040218,13]
[407791360,1772803865111,-800.0,0.00040218,13]
[407791361,1772803865121,-800.0,0.00040218,13]
[407791362,1772803865131,-800.0,0.00040218,13]
[407791363,1772803865140,-800.0,0.00040218,13]
[407791364,1772803865150,-800.0,0.00040218,13]
[407791365,1772803865160,-800.0,0.00040218,13]
[407791366,1772803865170,-800.0,0.00040218,13]
[407791367,1772803865180,-800.0,0.00040218,13]
[407791368,1772803865190,-800.0,0.00040218,13]
[407791369,1772803865200,-800.0,0.00040218,13]
[407791370,1772803865210,-872.0,0.00040218,13]
[407791371,1772803865221,-200.0,0.00040218,2]
[407791372,1772803865231,-200.0,0.00040218,2]
[407791373,1772803865243,-200.0,0.00040218,2]
[407791374,1772803865254,-200.0,0.00040218,2]
[407791375,1772803865263,-200.0,0.00040218,2]
[407791376,1772803865273,-200.0,0.00040218,2]
[407791377,1772803865282,-200.0,0.00040218,2]
[407791378,1772803865292,-200.0,0.00040218,2]
[407791379,1772803865303,-200.0,0.00040218,2]
[407791380,1772803865312,-200.0,0.00040218,2]
[407791381,1772803865323,-200.0,0.00040218,2]
[407791382,1772803865332,-200.0,0.00040218,2]
[407791383,1772803865342,-200.0,0.00040218,2]
[407791384,1772803865352,-200.0,0.00040218,2]
[407791385,1772803865361,-200.0,0.00040218,2]
[407791386,1772803865371,-200.0,0.00040218,2]
[407791387,1772803865381,-200.0,0.00040218,2]
[407791388,1772803865391,-200.0,0.00040218,2]
[407791389,1772803865401,-200.0,0.00040218,2]
[407791390,1772803865411,-200.0,0.00040218,2]
[407791391,1772803865420,-200.0,0.00040218,2]
[407791392,1772803865430,-200.0,0.00040218,2]
[407791393,1772803865439,-200.0,0.00040218,2]
[407791394,1772803865449,-200.0,0.00040218,2]
[407791395,1772803865459,-200.0,0.00040218,2]
[407791396,1772803865468,-200.0,0.00040218,2]
[407791397,1772803865478,-200.0,0.00040218,2]
[407791398,1772803865488,-200.0,0.00040218,2]
[407791399,1772803865501,-200.0,0.00040218,2]
[407791400,1772803865511,-200.0,0.00040218,2]
[407791401,1772803865521,-200.0,0.00040218,2]
[407791402,1772803865531,-200.0,0.00040218,2]
[407791403,1772803865541,-200.0,0.00040218,2]
[407791404,1772803865551,-200.0,0.00040218,2]
[407791405,1772803865560,-200.0,0.00040218,2]
[407791406,1772803865569,-200.0,0.00040218,2]
[407791407,1772803865579,-247.0,0.00040218,2]
[407791408,1772803865594,-1831.985538,0.00040218,120]
[407791409,1772803865604,-1831.985538,0.00040218,120]
[407791410,1772803865614,-1831.985538,0.00040218,120]
[407791411,1772803865624,-1831.985538,0.00040218,120]
[407791412,1772803865635,-151.0,0.00040218,60]
[407791413,1772803865645,-151.0,0.00040218,120]
[407791414,1772803865654,-724.53543,0.00040288,30]
[407791415,1772803865666,-151.5,0.00040295,2]
[407791416,1772803865676,-154.84306962,0.00040384,82]
[407791417,1772803865686,-724.53543,0.00040488,30]
[407791418,1772803865695,-160.77654311,0.00040521,30]
[407791419,1772803865705,-360.0,0.00040596,90]
[407791420,1772803865715,-152.0,0.00040633,8]
[407791421,1772803865724,-724.53543,0.00040688,30]
[407791422,1772803865734,-151.0,0.000407,120]
[407791423,1772803865746,-151.0,0.000407,120]
[407791424,1772803865756,-151.0,0.000407,120]
[407791425,1772803865767,-151.0,0.000407,120]
[407791426,1772803865777,-591989.51481197,0.000407,6]
[407791427,1772803865787,-151.0,0.000407,120]
[407791428,1772803865797,-151.0,0.000407,14]
[407791429,1772803865807,-151.0,0.000407,14]
[407791430,1772803865817,-212.00038322,0.000408,60]
[407791431,1772803865827,-724.53543,0.00040888,30]
[407791432,1772803865836,-151.0,0.000409,120]
[407791434,1772803865846,-153.0,0.000409,120]
[407791435,1772803865855,-1967.15983102,0.000409,2]
[407791436,1772803865865,-151.5,0.00040993,2]
[407791437,1772803865875,-903.0,0.00041,30]
[407791438,1772803865885,-1336.03383566,0.00041,30]
[407791439,1772803865894,-275.49638376,0.00041,120]
[407791440,1772803865904,-3567.05,0.00041,14]
[407791441,1772803865914,-198.87559157,0.00041,120]
[407791442,1772803865923,-56874.46254087,0.00041,5]
[407791443,1772803865933,-661.96504454,0.00041,120]
[407791444,1772803865942,-3973.99141017,0.00041,120]
[407791445,1772803865952,-929.44846803,0.00041,120]
[407791446,1772803865962,-308.0,0.00041,10]
[407791447,1772803865973,-151.5,0.0004103,2]
[407791448,1772803865982,-1042.14801132,0.00041068,120]
[407791449,1772803865991,-446.63486199,0.00041068,120]
[407791450,1772803866004,-300.0,0.00041068,22]
[407791451,1772803866014,-724.53543,0.00041088,30]
[407791452,1772803866023,-746.0,0.00041096,120]
[407791453,1772803866032,-800.0,0.00041096,14]
[407791454,1772803866041,-800.0,0.00041096,14]
[407791455,1772803866051,-800.0,0.00041096,14]
[407791456,1772803866060,-800.0,0.00041096,14]
[407791457,1772803866070,-800.0,0.00041096,14]
[407791458,1772803866079,-800.0,0.00041096,14]
[407791459,1772803866088,-800.0,0.00041096,14]
[407791460,1772803866098,-800.0,0.00041096,14]
[407791461,1772803866107,-300.0,0.00041096,10]
[407791462,1772803866116,-800.0,0.00041096,14]
[407791463,1772803866125,-800.0,0.00041096,14]
[407791464,1772803866135,-800.0,0.00041096,14]
[407791465,1772803866144,-800.0,0.00041096,14]
[407791466,1772803866153,-800.0,0.00041096,14]
[407791467,1772803866163,-800.0,0.00041096,14]
[407791468,1772803866172,-800.0,0.00041096,14]
[407791469,1772803866182,-800.0,0.00041096,14]
[407791470,1772803866191,-500.0,0.00041096,7]
[407791471,1772803866202,-2022.85431947,0.00041096,10]
[407791472,1772803866211,-150.0,0.00041096,10]
[407791473,1772803866221,-150.0,0.00041096,10]
[407791474,1772803866230,-300.0,0.00041096,30]
[407791475,1772803866240,-300.0,0.00041096,30]
[407791476,1772803866252,-300.0,0.00041096,30]
[407791477,1772803866261,-300.0,0.00041096,30]
[407791478,1772803866271,-300.0,0.00041096,30]
[407791479,1772803866280,-300.0,0.00041096,30]
[407791480,1772803866289,-300.0,0.00041096,30]
[407791481,1772803866298,-300.0,0.00041096,30]
[407791482,1772803866308,-300.0,0.00041096,30]
[407791483,1772803866317,-300.0,0.00041096,30]
[407791484,1772803866326,-300.0,0.00041096,30]
[407791485,1772803866336,-300.0,0.00041096,30]
[407791486,1772803866345,-300.0,0.00041096,30]